[Event "Titled Tuesday Blitz March 21 Early 2023"]
[White "Do Nascimento,Christian Almeida"]
[Black "Shvedova, Alexandra"]
[WhiteFideId "2143801"]
[BlackFideId "54154782"]
[WhiteElo "2125"]
[BlackElo "2057"]
[Result "1/2-1/2"]
[Round "08"]
[TimeControl "180+2"]
[Date "2023.03.21"]
[WhiteClock "0:00:18"]
[BlackClock "0:00:27"]

1. d4 {[%clk 0:02:54]}  Nf6 {[%clk 0:02:59]} 2. e3 {[%clk 0:02:54]}  d5 {[%clk 0:02:58]} 3. Bd3 {[%clk 0:02:55]}  c5 {[%clk 0:02:57]} 4. c3 {[%clk 0:02:54]}  Nc6 {[%clk 0:02:55]} 5. f4 {[%clk 0:02:54]}  Ne4 {[%clk 0:02:49]} 6. Nf3 {[%clk 0:02:54]}  Bf5 {[%clk 0:02:41]} 7. O-O {[%clk 0:02:53]}  e6 {[%clk 0:02:41]} 8. Ne5 {[%clk 0:02:51]}  h5 {[%clk 0:02:37]} 9. Bb5 {[%clk 0:02:16]}  Qb6 {[%clk 0:02:28]} 10. a4 {[%clk 0:02:15]}  a6 {[%clk 0:02:23]} 11. Nxc6 {[%clk 0:02:03]}  axb5 {[%clk 0:02:17]} 12. Ne5 {[%clk 0:02:03]}  b4 {[%clk 0:02:05]} 13. Nd2 {[%clk 0:02:00]}  bxc3 {[%clk 0:02:02]} 14. Nxe4 {[%clk 0:01:55]}  cxb2 {[%clk 0:02:02]} 15. Rb1 {[%clk 0:01:47]}  bxc1=Q {[%clk 0:01:51]} 16. Qxc1 {[%clk 0:01:48]}  Qc7 {[%clk 0:01:45]} 17. Nxc5 {[%clk 0:01:33]}  Bxc5 {[%clk 0:01:34]} 18. dxc5 {[%clk 0:01:23]}  Bxb1 {[%clk 0:01:33]} 19. Qxb1 {[%clk 0:01:23]}  O-O {[%clk 0:01:28]} 20. Qb5 {[%clk 0:01:05]}  Ra5 {[%clk 0:01:26]} 21. Qe2 {[%clk 0:01:03]}  g6 {[%clk 0:01:19]} 22. g4 {[%clk 0:01:02]}  hxg4 {[%clk 0:01:09]} 23. Qxg4 {[%clk 0:01:00]}  Kg7 {[%clk 0:01:10]} 24. c6 {[%clk 0:00:47]}  bxc6 {[%clk 0:01:09]} 25. Qg5 {[%clk 0:00:40]}  Qb6 {[%clk 0:01:02]} 26. Ng4 {[%clk 0:00:34]}  Rh8 {[%clk 0:00:54]} 27. Qe5+ {[%clk 0:00:21]}  Kh7 {[%clk 0:00:37]} 28. Nf6+ {[%clk 0:00:20]}  Kh6 {[%clk 0:00:37]} 29. Nxd5 {[%clk 0:00:10]}  Qd8 {[%clk 0:00:33]} 30. Qg5+ {[%clk 0:00:05]}  Qxg5+ {[%clk 0:00:33]} 31. fxg5+ {[%clk 0:00:05]}  Kxg5 {[%clk 0:00:33]} 32. Nc3 {[%clk 0:00:06]}  Rf5 {[%clk 0:00:31]} 33. Rd1 {[%clk 0:00:03]}  Ra8 {[%clk 0:00:23]} 34. Rd4 {[%clk 0:00:03]}  c5 {[%clk 0:00:21]} 35. Rc4 {[%clk 0:00:03]}  Re5 {[%clk 0:00:20]} 36. Kf2 {[%clk 0:00:02]}  f5 {[%clk 0:00:20]} 37. Kf3 {[%clk 0:00:03]}  Kf6 {[%clk 0:00:19]} 38. h4 {[%clk 0:00:03]}  g5 {[%clk 0:00:18]} 39. hxg5+ {[%clk 0:00:03]}  Kxg5 {[%clk 0:00:19]} 40. Nb5 {[%clk 0:00:03]}  Ra5 {[%clk 0:00:15]} 41. Nc3 {[%clk 0:00:04]}  Kf6 {[%clk 0:00:14]} 42. Rf4 {[%clk 0:00:04]}  c4 {[%clk 0:00:11]} 43. Rxc4 {[%clk 0:00:04]}  Rec5 {[%clk 0:00:12]} 44. Rxc5 {[%clk 0:00:04]}  Rxc5 {[%clk 0:00:13]} 45. Ne2 {[%clk 0:00:04]}  Rc4 {[%clk 0:00:13]} 46. a5 {[%clk 0:00:04]}  Ra4 {[%clk 0:00:14]} 47. Nd4 {[%clk 0:00:04]}  Rxa5 {[%clk 0:00:14]} 48. Ne2 {[%clk 0:00:05]}  e5 {[%clk 0:00:13]} 49. Nc3 {[%clk 0:00:05]}  Ra3 {[%clk 0:00:13]} 50. Nd5+ {[%clk 0:00:05]}  Ke6 {[%clk 0:00:14]} 51. Nc7+ {[%clk 0:00:06]}  Kd7 {[%clk 0:00:12]} 52. Nd5 {[%clk 0:00:06]}  f4 {[%clk 0:00:11]} 53. Ke4 {[%clk 0:00:05]}  fxe3 {[%clk 0:00:10]} 54. Nxe3 {[%clk 0:00:06]}  Ke6 {[%clk 0:00:10]} 55. Nc2 {[%clk 0:00:04]}  Ra4+ {[%clk 0:00:10]} 56. Ke3 {[%clk 0:00:04]}  Kf5 {[%clk 0:00:10]} 57. Kd3 {[%clk 0:00:03]}  e4+ {[%clk 0:00:10]} 58. Ke3 {[%clk 0:00:03]}  Rc4 {[%clk 0:00:10]} 59. Kd2 {[%clk 0:00:03]}  Kf4 {[%clk 0:00:10]} 60. Ne3 {[%clk 0:00:03]}  Rd4+ {[%clk 0:00:10]} 61. Ke2 {[%clk 0:00:04]}  Rd3 {[%clk 0:00:11]} 62. Ng2+ {[%clk 0:00:03]}  Ke5 {[%clk 0:00:11]} 63. Ne3 {[%clk 0:00:04]}  Ra3 {[%clk 0:00:11]} 64. Nc4+ {[%clk 0:00:04]}  Kd4 {[%clk 0:00:10]} 65. Nxa3 {[%clk 0:00:04]}  Kc3 {[%clk 0:00:11]} 66. Nb1+ {[%clk 0:00:05]}  Kc2 {[%clk 0:00:10]} 67. Nd2 {[%clk 0:00:06]}  e3 {[%clk 0:00:11]} 68. Nf3 {[%clk 0:00:06]}  Kc3 {[%clk 0:00:10]} 69. Ne5 {[%clk 0:00:07]}  Kd4 {[%clk 0:00:10]} 70. Ng6 {[%clk 0:00:08]}  Kc5 {[%clk 0:00:11]} 71. Nf8 {[%clk 0:00:09]}  Kd6 {[%clk 0:00:12]} 72. Nh7 {[%clk 0:00:09]}  Kc6 {[%clk 0:00:13]} 73. Ng5 {[%clk 0:00:09]}  Kc7 {[%clk 0:00:14]} 74. Nf3 {[%clk 0:00:10]}  Kd7 {[%clk 0:00:15]} 75. Nd4 {[%clk 0:00:10]}  Kd8 {[%clk 0:00:16]} 76. Kd3 {[%clk 0:00:10]}  Ke7 {[%clk 0:00:17]} 77. Ne2 {[%clk 0:00:11]}  Kd6 {[%clk 0:00:17]} 78. Ke4 {[%clk 0:00:12]}  Kc5 {[%clk 0:00:18]} 79. Kd3 {[%clk 0:00:12]}  Kb4 {[%clk 0:00:19]} 80. Nf4 {[%clk 0:00:12]}  Kb3 {[%clk 0:00:20]} 81. Ke2 {[%clk 0:00:13]}  Kc2 {[%clk 0:00:21]} 82. Ng2 {[%clk 0:00:14]}  Kc1 {[%clk 0:00:22]} 83. Nh4 {[%clk 0:00:14]}  Kc2 {[%clk 0:00:23]} 84. Ng6 {[%clk 0:00:15]}  Kb2 {[%clk 0:00:24]} 85. Nf4 {[%clk 0:00:16]}  Kb1 {[%clk 0:00:25]} 86. Ne6 {[%clk 0:00:17]}  Kb2 {[%clk 0:00:26]} 87. Nd4 {[%clk 0:00:18]}  Ka1 {[%clk 0:00:26]} 88. Nc6 {[%clk 0:00:19]}  Ka2 {[%clk 0:00:27]} 89. Kxe3 {[%clk 0:00:18]} 1/2-1/2


[Site "https://www.chess.com"]

[Event "Titled Tuesday Blitz March 21 Early 2023"]
[White "Tomaszewski, Kacper"]
[Black "TheKnightOfBosnia"]
[WhiteFideId "1127373"]
[WhiteElo "2211"]
[BlackElo "2527"]
[Result "1-0"]
[Round "08"]
[TimeControl "180+2"]
[Date "2023.03.21"]
[WhiteClock "0:00:25"]
[BlackClock "0:00:08"]

1. e4 {[%clk 0:03:00]}  e5 {[%clk 0:03:00]} 2. Nf3 {[%clk 0:03:01]}  Nc6 {[%clk 0:03:00]} 3. Nc3 {[%clk 0:03:01]}  Nf6 {[%clk 0:03:01]} 4. h3 {[%clk 0:03:02]}  h6 {[%clk 0:02:58]} 5. a3 {[%clk 0:02:48]}  Be7 {[%clk 0:02:46]} 6. d4 {[%clk 0:02:47]}  d6 {[%clk 0:02:40]} 7. Bb5 {[%clk 0:02:45]}  Bd7 {[%clk 0:02:33]} 8. d5 {[%clk 0:02:44]}  Nb8 {[%clk 0:02:33]} 9. Bd3 {[%clk 0:02:44]}  c6 {[%clk 0:02:31]} 10. O-O {[%clk 0:02:38]}  a6 {[%clk 0:02:27]} 11. Re1 {[%clk 0:02:25]}  b5 {[%clk 0:02:26]} 12. b4 {[%clk 0:02:23]}  O-O {[%clk 0:02:24]} 13. dxc6 {[%clk 0:02:21]}  Nxc6 {[%clk 0:02:23]} 14. Bf1 {[%clk 0:02:19]}  Rc8 {[%clk 0:02:18]} 15. Bb2 {[%clk 0:02:14]}  Re8 {[%clk 0:02:10]} 16. Rc1 {[%clk 0:02:05]}  Bf8 {[%clk 0:02:06]} 17. Nh2 {[%clk 0:01:54]}  Nd4 {[%clk 0:02:04]} 18. Ne2 {[%clk 0:01:48]}  Nxe2+ {[%clk 0:01:54]} 19. Qxe2 {[%clk 0:01:43]}  a5 {[%clk 0:01:50]} 20. c4 {[%clk 0:01:38]}  axb4 {[%clk 0:01:47]} 21. cxb5 {[%clk 0:01:33]}  bxa3 {[%clk 0:01:45]} 22. Bxa3 {[%clk 0:01:32]}  Qa5 {[%clk 0:01:43]} 23. Qb2 {[%clk 0:01:25]}  Rxc1 {[%clk 0:01:36]} 24. Rxc1 {[%clk 0:01:23]}  Nxe4 {[%clk 0:01:33]} 25. b6 {[%clk 0:01:17]}  Nc5 {[%clk 0:01:26]} 26. Bxc5 {[%clk 0:01:13]}  dxc5 {[%clk 0:01:24]} 27. Nf3 {[%clk 0:01:14]}  e4 {[%clk 0:01:22]} 28. Ne5 {[%clk 0:01:13]}  Bf5 {[%clk 0:01:09]} 29. b7 {[%clk 0:01:07]}  Qc7 {[%clk 0:01:08]} 30. Bc4 {[%clk 0:00:55]}  Be6 {[%clk 0:00:54]} 31. Bxe6 {[%clk 0:00:54]}  fxe6 {[%clk 0:00:54]} 32. Nc6 {[%clk 0:00:32]}  Qxc6 {[%clk 0:00:54]} 33. b8=Q {[%clk 0:00:32]}  Rxb8 {[%clk 0:00:54]} 34. Qxb8 {[%clk 0:00:33]}  e3 {[%clk 0:00:34]} 35. fxe3 {[%clk 0:00:32]}  Qe4 {[%clk 0:00:28]} 36. Rf1 {[%clk 0:00:31]}  Qxe3+ {[%clk 0:00:18]} 37. Rf2 {[%clk 0:00:31]}  Qe1+ {[%clk 0:00:15]} 38. Rf1 {[%clk 0:00:29]}  Qe3+ {[%clk 0:00:09]} 39. Kh1 {[%clk 0:00:29]}  Kh7 {[%clk 0:00:09]} 40. Qxf8 {[%clk 0:00:28]}  c4 {[%clk 0:00:09]} 41. Qf3 {[%clk 0:00:28]}  Qe5 {[%clk 0:00:07]} 42. Rc1 {[%clk 0:00:26]}  Qd5 {[%clk 0:00:05]} 43. Qc3 {[%clk 0:00:24]}  h5 {[%clk 0:00:03]} 44. Qxc4 {[%clk 0:00:25]}  Qg5 {[%clk 0:00:03]} 45. Qe4+ {[%clk 0:00:23]}  Kh6 {[%clk 0:00:02]} 46. Re1 {[%clk 0:00:23]}  h4 {[%clk 0:00:01]} 47. Qxe6+ {[%clk 0:00:23]}  Kh7 {[%clk 0:00:02]} 48. Qe4+ {[%clk 0:00:23]}  g6 {[%clk 0:00:02]} 49. Qe7+ {[%clk 0:00:22]}  Qxe7 {[%clk 0:00:03]} 50. Rxe7+ {[%clk 0:00:23]}  Kh6 {[%clk 0:00:04]} 51. Re4 {[%clk 0:00:23]}  Kg5 {[%clk 0:00:04]} 52. Rg4+ {[%clk 0:00:23]}  Kh5 {[%clk 0:00:05]} 53. Kg1 {[%clk 0:00:24]}  g5 {[%clk 0:00:05]} 54. Kf2 {[%clk 0:00:24]}  Kg6 {[%clk 0:00:06]} 55. Ke3 {[%clk 0:00:25]}  Kf5 {[%clk 0:00:06]} 56. Kf3 {[%clk 0:00:25]}  Kf6 {[%clk 0:00:07]} 57. Ra4 {[%clk 0:00:26]}  Kg6 {[%clk 0:00:08]} 58. Kg4 {[%clk 0:00:25]} 1-0


[Site "https://www.chess.com"]

[Event "Titled Tuesday Blitz March 21 Early 2023"]
[White "Begunov, Konstantin"]
[Black "Hirneise, Jens"]
[WhiteFideId "4118510"]
[BlackFideId "24614734"]
[WhiteElo "2079"]
[BlackElo "2345"]
[Result "0-1"]
[Round "08"]
[TimeControl "180+2"]
[Date "2023.03.21"]
[WhiteClock "0:00:01"]
[BlackClock "0:01:36"]

1. d4 {[%clk 0:01:53]}  Nf6 {[%clk 0:02:58]} 2. c4 {[%clk 0:01:53]}  Nc6 {[%clk 0:02:59]} 3. Nc3 {[%clk 0:01:52]}  e5 {[%clk 0:02:59]} 4. d5 {[%clk 0:01:52]}  Ne7 {[%clk 0:02:59]} 5. h4 {[%clk 0:01:53]}  h5 {[%clk 0:02:59]} 6. Nf3 {[%clk 0:01:53]}  d6 {[%clk 0:02:59]} 7. Ng5 {[%clk 0:01:52]}  g6 {[%clk 0:02:57]} 8. e4 {[%clk 0:01:51]}  Bg7 {[%clk 0:02:57]} 9. f3 {[%clk 0:01:51]}  c5 {[%clk 0:02:53]} 10. dxc6 {[%clk 0:01:49]}  bxc6 {[%clk 0:02:54]} 11. Be3 {[%clk 0:01:50]}  O-O {[%clk 0:02:50]} 12. Be2 {[%clk 0:01:45]}  d5 {[%clk 0:02:50]} 13. cxd5 {[%clk 0:01:42]}  cxd5 {[%clk 0:02:51]} 14. exd5 {[%clk 0:01:33]}  Nexd5 {[%clk 0:02:52]} 15. Nxd5 {[%clk 0:01:30]}  Nxd5 {[%clk 0:02:47]} 16. Bd2 {[%clk 0:01:19]}  Qb6 {[%clk 0:02:44]} 17. Qb3 {[%clk 0:01:17]}  Nf4 {[%clk 0:02:22]} 18. Qxb6 {[%clk 0:01:11]}  axb6 {[%clk 0:02:23]} 19. g3 {[%clk 0:00:46]}  Nxe2 {[%clk 0:02:18]} 20. Kxe2 {[%clk 0:00:46]}  Ba6+ {[%clk 0:02:19]} 21. Kf2 {[%clk 0:00:37]}  Rfd8 {[%clk 0:01:59]} 22. Bc3 {[%clk 0:00:37]}  Rd3 {[%clk 0:02:00]} 23. Rhd1 {[%clk 0:00:33]}  Rad8 {[%clk 0:01:59]} 24. Rxd3 {[%clk 0:00:32]}  Rxd3 {[%clk 0:02:00]} 25. Re1 {[%clk 0:00:31]}  f6 {[%clk 0:01:57]} 26. Ne4 {[%clk 0:00:18]}  Kf7 {[%clk 0:01:50]} 27. Re3 {[%clk 0:00:17]}  Rd7 {[%clk 0:01:47]} 28. Nd2 {[%clk 0:00:16]}  Bh6 {[%clk 0:01:45]} 29. f4 {[%clk 0:00:12]}  exf4 {[%clk 0:01:45]} 30. gxf4 {[%clk 0:00:10]}  Bxf4 {[%clk 0:01:46]} 31. Rf3 {[%clk 0:00:09]}  Bxd2 {[%clk 0:01:46]} 32. Rxf6+ {[%clk 0:00:08]}  Ke7 {[%clk 0:01:46]} 33. Rxb6 {[%clk 0:00:08]}  Bxc3 {[%clk 0:01:46]} 34. bxc3 {[%clk 0:00:08]}  Bd3 {[%clk 0:01:46]} 35. Ke3 {[%clk 0:00:07]}  Bf5 {[%clk 0:01:44]} 36. c4 {[%clk 0:00:08]}  Ra7 {[%clk 0:01:44]} 37. Rb2 {[%clk 0:00:07]}  Kd6 {[%clk 0:01:41]} 38. Kd4 {[%clk 0:00:08]}  Kc6 {[%clk 0:01:41]} 39. Re2 {[%clk 0:00:05]}  Rd7+ {[%clk 0:01:38]} 40. Kc3 {[%clk 0:00:05]}  Rd3+ {[%clk 0:01:38]} 41. Kb4 {[%clk 0:00:04]}  Rh3 {[%clk 0:01:37]} 42. a4 {[%clk 0:00:03]}  Rxh4 {[%clk 0:01:37]} 43. a5 {[%clk 0:00:04]}  Rh1 {[%clk 0:01:37]} 44. Rd2 {[%clk 0:00:02]}  Rb1+ {[%clk 0:01:36]} 45. Kc3 {[%clk 0:00:02]}  h4 {[%clk 0:01:36]} 46. a6 {[%clk 0:00:01]}  h3 {[%clk 0:01:36]} 0-1


[Site "https://www.chess.com"]

[Event "Titled Tuesday Blitz March 21 Early 2023"]
[White "Harriott, Tyrell"]
[Black "Padmini, Rout"]
[WhiteFideId "2086484"]
[BlackFideId "5029295"]
[WhiteElo "2107"]
[BlackElo "2314"]
[Result "0-1"]
[Round "08"]
[TimeControl "180+2"]
[Date "2023.03.21"]
[WhiteClock "0:00:12"]
[BlackClock "0:01:05"]

1. d4 {[%clk 0:03:00]}  Nf6 {[%clk 0:02:59]} 2. e3 {[%clk 0:02:38]}  c5 {[%clk 0:02:58]} 3. c3 {[%clk 0:02:33]}  b6 {[%clk 0:02:57]} 4. f4 {[%clk 0:02:25]}  Bb7 {[%clk 0:02:57]} 5. Nf3 {[%clk 0:02:23]}  g6 {[%clk 0:02:54]} 6. Bd3 {[%clk 0:02:23]}  Be4 {[%clk 0:02:51]} 7. O-O {[%clk 0:02:20]}  Bxd3 {[%clk 0:02:47]} 8. Qxd3 {[%clk 0:02:20]}  d5 {[%clk 0:02:47]} 9. Nbd2 {[%clk 0:02:17]}  Bg7 {[%clk 0:02:47]} 10. f5 {[%clk 0:02:15]}  O-O {[%clk 0:02:45]} 11. fxg6 {[%clk 0:02:15]}  hxg6 {[%clk 0:02:43]} 12. Ng5 {[%clk 0:02:15]}  Nc6 {[%clk 0:02:39]} 13. e4 {[%clk 0:02:14]}  cxd4 {[%clk 0:02:36]} 14. exd5 {[%clk 0:02:02]}  Qxd5 {[%clk 0:02:33]} 15. Ndf3 {[%clk 0:01:54]}  dxc3 {[%clk 0:02:28]} 16. Qxc3 {[%clk 0:01:39]}  Ng4 {[%clk 0:02:22]} 17. Qe1 {[%clk 0:01:38]}  Nd4 {[%clk 0:02:15]} 18. Qh4 {[%clk 0:01:33]}  Nxf3+ {[%clk 0:02:09]} 19. gxf3 {[%clk 0:01:25]}  Nh6 {[%clk 0:01:49]} 20. Be3 {[%clk 0:01:17]}  f6 {[%clk 0:01:48]} 21. Nh3 {[%clk 0:00:59]}  Nf5 {[%clk 0:01:47]} 22. Qf2 {[%clk 0:00:58]}  Nxe3 {[%clk 0:01:38]} 23. Qxe3 {[%clk 0:00:59]}  e5 {[%clk 0:01:39]} 24. Rf2 {[%clk 0:00:55]}  Rad8 {[%clk 0:01:37]} 25. Rg2 {[%clk 0:00:54]}  Kf7 {[%clk 0:01:35]} 26. Kh1 {[%clk 0:00:52]}  Rh8 {[%clk 0:01:34]} 27. f4 {[%clk 0:00:49]}  Qd3 {[%clk 0:01:12]} 28. Rg3 {[%clk 0:00:31]}  Qxe3 {[%clk 0:01:09]} 29. Rxe3 {[%clk 0:00:32]}  e4 {[%clk 0:01:06]} 30. Nf2 {[%clk 0:00:28]}  f5 {[%clk 0:01:07]} 31. Rb1 {[%clk 0:00:25]}  Rd2 {[%clk 0:01:06]} 32. Rh3 {[%clk 0:00:12]}  Rxf2 {[%clk 0:01:04]} 33. Rxh8 {[%clk 0:00:12]}  Bxh8 {[%clk 0:01:05]} 0-1


[Site "https://www.chess.com"]

[Event "Titled Tuesday Blitz March 21 Early 2023"]
[White "Horak, Martin"]
[Black "Meunier-Pion, Jean"]
[WhiteFideId "367095"]
[BlackFideId "20685327"]
[WhiteElo "2091"]
[BlackElo "2124"]
[Result "0-1"]
[Round "08"]
[TimeControl "180+2"]
[Date "2023.03.21"]
[WhiteClock "0:00:07"]
[BlackClock "0:00:16"]

1. d4 {[%clk 0:02:54]}  d5 {[%clk 0:02:58]} 2. c4 {[%clk 0:02:54]}  c6 {[%clk 0:02:59]} 3. Nf3 {[%clk 0:02:54]}  Nf6 {[%clk 0:02:59]} 4. e3 {[%clk 0:02:53]}  a6 {[%clk 0:02:58]} 5. Qb3 {[%clk 0:02:40]}  e6 {[%clk 0:02:47]} 6. Be2 {[%clk 0:02:27]}  c5 {[%clk 0:02:42]} 7. O-O {[%clk 0:02:22]}  Nc6 {[%clk 0:02:41]} 8. cxd5 {[%clk 0:02:08]}  exd5 {[%clk 0:02:39]} 9. Nc3 {[%clk 0:01:47]}  c4 {[%clk 0:02:26]} 10. Qd1 {[%clk 0:01:44]}  Bf5 {[%clk 0:02:06]} 11. a3 {[%clk 0:01:32]}  Bd6 {[%clk 0:02:00]} 12. Nh4 {[%clk 0:01:23]}  Bg6 {[%clk 0:01:51]} 13. Nxg6 {[%clk 0:01:15]}  hxg6 {[%clk 0:01:42]} 14. h3 {[%clk 0:01:15]}  Qd7 {[%clk 0:01:28]} 15. Bg4 {[%clk 0:00:59]}  Nxg4 {[%clk 0:01:22]} 16. Qxg4 {[%clk 0:00:57]}  Qxg4 {[%clk 0:01:09]} 17. hxg4 {[%clk 0:00:58]}  Bh2+ {[%clk 0:01:09]} 18. Kh1 {[%clk 0:00:58]}  O-O-O {[%clk 0:01:05]} 19. g3 {[%clk 0:00:48]}  Bxg3+ {[%clk 0:01:05]} 20. Kg2 {[%clk 0:00:49]}  Bc7 {[%clk 0:00:47]} 21. Bd2 {[%clk 0:00:49]}  f5 {[%clk 0:00:44]} 22. Rh1 {[%clk 0:00:31]}  Rhf8 {[%clk 0:00:43]} 23. f4 {[%clk 0:00:23]}  g5 {[%clk 0:00:39]} 24. Ne2 {[%clk 0:00:20]}  gxf4 {[%clk 0:00:35]} 25. exf4 {[%clk 0:00:17]}  fxg4 {[%clk 0:00:31]} 26. Rh7 {[%clk 0:00:14]}  Rde8 {[%clk 0:00:29]} 27. Kf2 {[%clk 0:00:11]}  g5 {[%clk 0:00:26]} 28. Rg1 {[%clk 0:00:05]}  gxf4 {[%clk 0:00:19]} 29. Rxg4 {[%clk 0:00:06]}  f3 {[%clk 0:00:17]} 30. Rgg7 {[%clk 0:00:07]}  fxe2+ {[%clk 0:00:16]} 0-1


[Site "https://www.chess.com"]

[Event "Titled Tuesday Blitz March 21 Early 2023"]
[White "koncheto"]
[Black "Klepikov, Nikita"]
[BlackFideId "24145220"]
[WhiteElo "2503"]
[BlackElo "2025"]
[Result "1-0"]
[Round "08"]
[TimeControl "180+2"]
[Date "2023.03.21"]
[WhiteClock "0:00:33"]
[BlackClock "0:00:02"]

1. e4 {[%clk 0:03:00]}  c5 {[%clk 0:02:59]} 2. Nf3 {[%clk 0:03:01]}  Nc6 {[%clk 0:02:58]} 3. d4 {[%clk 0:03:01]}  cxd4 {[%clk 0:02:59]} 4. Nxd4 {[%clk 0:03:02]}  g6 {[%clk 0:03:00]} 5. c4 {[%clk 0:03:02]}  Nf6 {[%clk 0:02:59]} 6. Nc3 {[%clk 0:03:02]}  d6 {[%clk 0:02:59]} 7. Be2 {[%clk 0:02:59]}  Nxd4 {[%clk 0:02:58]} 8. Qxd4 {[%clk 0:02:59]}  Bg7 {[%clk 0:02:58]} 9. Be3 {[%clk 0:02:55]}  O-O {[%clk 0:02:57]} 10. Qd2 {[%clk 0:02:55]}  Ng4 {[%clk 0:02:25]} 11. Bxg4 {[%clk 0:02:54]}  Bxg4 {[%clk 0:02:24]} 12. O-O {[%clk 0:02:53]}  Be6 {[%clk 0:02:13]} 13. b3 {[%clk 0:02:51]}  Qa5 {[%clk 0:01:51]} 14. Rac1 {[%clk 0:02:50]}  Rfc8 {[%clk 0:01:42]} 15. Nb5 {[%clk 0:02:19]}  Qxd2 {[%clk 0:01:31]} 16. Bxd2 {[%clk 0:02:20]}  a6 {[%clk 0:01:31]} 17. Nc3 {[%clk 0:02:19]}  b5 {[%clk 0:01:19]} 18. Nd5 {[%clk 0:02:12]}  Bxd5 {[%clk 0:01:06]} 19. cxd5 {[%clk 0:02:13]}  Bb2 {[%clk 0:00:53]} 20. Rb1 {[%clk 0:01:47]}  Rc2 {[%clk 0:00:52]} 21. Rfd1 {[%clk 0:01:48]}  Rac8 {[%clk 0:00:51]} 22. Kf1 {[%clk 0:01:46]}  Kg7 {[%clk 0:00:26]} 23. Ke1 {[%clk 0:01:35]}  Bd4 {[%clk 0:00:19]} 24. a4 {[%clk 0:01:20]}  Ra2 {[%clk 0:00:19]} 25. axb5 {[%clk 0:01:18]}  axb5 {[%clk 0:00:20]} 26. Rbc1 {[%clk 0:01:18]}  Rxc1 {[%clk 0:00:20]} 27. Rxc1 {[%clk 0:01:17]}  Bxf2+ {[%clk 0:00:21]} 28. Ke2 {[%clk 0:01:13]}  Bc5 {[%clk 0:00:16]} 29. Kd3 {[%clk 0:01:05]}  b4 {[%clk 0:00:13]} 30. Rc2 {[%clk 0:01:03]}  Rxc2 {[%clk 0:00:08]} 31. Kxc2 {[%clk 0:01:04]}  Kf6 {[%clk 0:00:08]} 32. Kd3 {[%clk 0:01:02]}  Ke5 {[%clk 0:00:08]} 33. Bc1 {[%clk 0:00:57]}  f5 {[%clk 0:00:04]} 34. Bb2+ {[%clk 0:00:54]}  Kf4 {[%clk 0:00:04]} 35. Bc1+ {[%clk 0:00:54]}  Ke5 {[%clk 0:00:05]} 36. Bb2+ {[%clk 0:00:54]}  Kf4 {[%clk 0:00:05]} 37. Bc1+ {[%clk 0:00:55]}  Kg4 {[%clk 0:00:06]} 38. Bd2 {[%clk 0:00:48]}  h5 {[%clk 0:00:04]} 39. Be1 {[%clk 0:00:42]}  f4 {[%clk 0:00:04]} 40. h3+ {[%clk 0:00:34]}  Kg5 {[%clk 0:00:04]} 41. Kc4 {[%clk 0:00:33]}  Kf6 {[%clk 0:00:02]} 42. Bxb4 {[%clk 0:00:33]} 1-0


[Site "https://www.chess.com"]

[Event "Titled Tuesday Blitz March 21 Early 2023"]
[White "Krzywda, Andrzej"]
[Black "Pham, Le Thao Nguyen"]
[WhiteFideId "1114565"]
[BlackFideId "12401226"]
[WhiteElo "2155"]
[BlackElo "2282"]
[Result "0-1"]
[Round "08"]
[TimeControl "180+2"]
[Date "2023.03.21"]
[WhiteClock "0:00:02"]
[BlackClock "0:00:02"]

1. e4 {[%clk 0:03:00]}  c5 {[%clk 0:02:56]} 2. Nf3 {[%clk 0:03:00]}  e6 {[%clk 0:02:56]} 3. d4 {[%clk 0:03:00]}  cxd4 {[%clk 0:02:57]} 4. Nxd4 {[%clk 0:03:01]}  a6 {[%clk 0:02:58]} 5. h3 {[%clk 0:03:00]}  Qc7 {[%clk 0:02:56]} 6. Bd3 {[%clk 0:02:59]}  Nc6 {[%clk 0:02:51]} 7. Nxc6 {[%clk 0:02:59]}  dxc6 {[%clk 0:02:49]} 8. O-O {[%clk 0:02:53]}  e5 {[%clk 0:02:43]} 9. f4 {[%clk 0:02:53]}  Bd6 {[%clk 0:02:37]} 10. Nd2 {[%clk 0:02:49]}  exf4 {[%clk 0:02:10]} 11. Nc4 {[%clk 0:02:47]}  Bc5+ {[%clk 0:02:10]} 12. Kh1 {[%clk 0:02:47]}  g5 {[%clk 0:02:08]} 13. Qh5 {[%clk 0:02:33]}  Be7 {[%clk 0:02:03]} 14. e5 {[%clk 0:02:27]}  h6 {[%clk 0:01:55]} 15. Bd2 {[%clk 0:02:12]}  Be6 {[%clk 0:01:51]} 16. Ba5 {[%clk 0:02:09]}  Qb8 {[%clk 0:01:34]} 17. Rad1 {[%clk 0:01:50]}  b5 {[%clk 0:01:28]} 18. Nd6+ {[%clk 0:01:43]}  Kf8 {[%clk 0:01:17]} 19. Nf5 {[%clk 0:01:28]}  Qc8 {[%clk 0:00:58]} 20. Nd6 {[%clk 0:01:15]}  Bxd6 {[%clk 0:00:37]} 21. exd6 {[%clk 0:01:16]}  Nf6 {[%clk 0:00:37]} 22. Qe2 {[%clk 0:01:12]}  Nd5 {[%clk 0:00:21]} 23. Qe5 {[%clk 0:01:06]}  Rg8 {[%clk 0:00:20]} 24. Rde1 {[%clk 0:00:52]}  Ne3 {[%clk 0:00:18]} 25. Bb4 {[%clk 0:00:53]}  Ke8 {[%clk 0:00:14]} 26. Rxe3 {[%clk 0:00:38]}  fxe3 {[%clk 0:00:15]} 27. Qxe3 {[%clk 0:00:39]}  Qd7 {[%clk 0:00:15]} 28. Bc5 {[%clk 0:00:38]}  Kd8 {[%clk 0:00:13]} 29. Be4 {[%clk 0:00:28]}  Kc8 {[%clk 0:00:13]} 30. a4 {[%clk 0:00:28]}  bxa4 {[%clk 0:00:12]} 31. Ra1 {[%clk 0:00:24]}  f5 {[%clk 0:00:12]} 32. Bd3 {[%clk 0:00:20]}  f4 {[%clk 0:00:11]} 33. Qe5 {[%clk 0:00:20]}  Bd5 {[%clk 0:00:10]} 34. Kh2 {[%clk 0:00:16]}  Re8 {[%clk 0:00:09]} 35. Qf6 {[%clk 0:00:13]}  f3 {[%clk 0:00:08]} 36. Bf5 {[%clk 0:00:12]}  Be6 {[%clk 0:00:08]} 37. Be4 {[%clk 0:00:10]}  fxg2 {[%clk 0:00:07]} 38. Bxg2 {[%clk 0:00:10]}  Bd5 {[%clk 0:00:05]} 39. Qf2 {[%clk 0:00:03]}  Qe6 {[%clk 0:00:03]} 40. Rxa4 {[%clk 0:00:02]}  Qe2 {[%clk 0:00:02]} 0-1


[Site "https://www.chess.com"]